[Event "Icelandic Championship 2024"]
[Site "Mosfellsbaer"]
[Date "2024.04.27"]
[Round "11.3"]
[White "Heimisson, Hilmir Freyr"]
[Black "Ptacnikova, Lenka"]
[Result "1-0"]
[ECO "A46"]
[WhiteElo "2361"]
[BlackElo "2127"]
[Annotator "RC"]
[PlyCount "23"]
[EventDate "2024.04.16"]
[EventType "tourn"]
[EventCountry "ISL"]
[SourceTitle "playchess.com"]
[Source "ChessBase"]
[SourceQuality "1"]
[TimeControl "40/5400+30:1800+30"]

1. d4 {[%emt 0:05:53]} Nf6 {[%emt 0:00:04]} 2. Nf3 {[%emt 0:02:01]} b5 {[%emt 0:00:44]} 3. Bg5 {[%emt 0:05:51]} Bb7 {[%emt 0:02:37]} 4. Nbd2 {[%emt 0:01:51]} d5 {[%emt 0:05:25]} 5. e3 {[%emt 0:05:42]} a6 {[%emt 0:00:34]} 6. a4 {[%emt 0:04:45]} b4 {[%emt 0:01:16]} 7. Nb3 {[%emt 0:01:41]} Ne4 {[%emt 0:01:38]} 8. Bh4 {[%emt 0:00:10]} Nd7 {[%emt 0:05:11]} 9. Nfd2 {[%emt 0:10:59]} g5 {[%emt 0:05:36]} 10. Nxe4 {[%emt 0:01:20]} gxh4 {[%emt 0:00:24]} 11. Nec5 {[%emt 0:00:10]} Bc8 {[%emt 0:11:59]} 12. Ne6 {[%emt 0:00:11]} 1-0

[Event "Icelandic Championship 2024"]
[Site "Mosfellsbaer"]
[Date "2024.04.27"]
[Round "11.4"]
[White "Stefansson, Hannes"]
[Black "Birkisson, Bardur Orn"]
[Result "0-1"]
[ECO "B40"]
[WhiteElo "2493"]
[BlackElo "2169"]
[Annotator "RC"]
[PlyCount "72"]
[EventDate "2024.04.16"]
[EventType "tourn"]
[EventCountry "ISL"]
[SourceTitle "playchess.com"]
[Source "ChessBase"]
[SourceQuality "1"]
[TimeControl "40/5400+30:1800+30"]

1. e4 {[%emt 0:00:12]} c5 {[%emt 0:00:21]} 2. Nf3 {[%emt 0:00:30]} e6 {[%emt 0:00:31]} 3. b3 {[%emt 0:00:27]} b6 {[%emt 0:01:10]} 4. d4 {[%emt 0:00:14]} cxd4 {[%emt 0:00:21]} 5. Nxd4 {[%emt 0:00:16]} a6 {[%emt 0:02:43]} 6. Bb2 {[%emt 0:02:04]} Bb7 {[%emt 0:01:08]} 7. Nd2 {[%emt 0:02:05]} d6 {[%emt 0:01:41]} 8. Bd3 {[%emt 0:01:34]} Nf6 {[%emt 0:00:53]} 9. Qe2 {[%emt 0:06:35]} Nbd7 {[%emt 0:03:00]} 10. c4 {[%emt 0:03:51]} Be7 {[%emt 0:03:14]} 11. f4 {[%emt 0:01:23]} Qc7 {[%emt 0:02:11]} 12. N4f3 {[%emt 0:09:07]} O-O {[%emt 0:06:29]} 13. O-O {[%emt 0:02:37]} Rac8 {[%emt 0:02:57]} 14. Rae1 {[%emt 0:04:15]} h6 {[%emt 0:07:15]} 15. e5 {[%emt 0:08:12]} dxe5 {[%emt 0:09:06]} 16. fxe5 {[%emt 0:03:00]} Nh7 {[%emt 0:03:33]} 17. Bb1 {[%emt 0:03:41]} Nc5 {[%emt 0:05:11]} 18. Nd4 {[%emt 0:01:40]} Rcd8 {[%emt 0:10:25]} 19. N2f3 {[%emt 0:02:48]} Rfe8 {[%emt 0:13:59]} 20. Qf2 {[%emt 0:09:08]} Bf8 {[%emt 0:07:21]} 21. h4 {[%emt 0:01:47]} b5 {[%emt 0:03:20]} 22. cxb5 {[%emt 0:02:19]} axb5 {[%emt 0:00:15]} 23. Nxb5 {[%emt 0:03:21]} Qd7 {[%emt 0:00:30]} 24. Nd6 {[%emt 0:01:31]} Bxd6 {[%emt 0:02:02]} 25. exd6 {[%emt 0:00:04]} Qxd6 {[%emt 0:01:38]} 26. Ne5 {[%emt 0:17:59]} f5 {[%emt 0:00:50]} 27. g4 {[%emt 0:03:01]} Qd5 {[%emt 0:00:41]} 28. Kh2 {[%emt 0:00:07]} Nf6 {[%emt 0:02:58]} 29. gxf5 {[%emt 0:00:19]} exf5 {[%emt 0:02:03]} 30. Bxf5 {[%emt 0:00:10]} Nce4 {[%emt 0:00:14]} 31. Bxe4 {[%emt 0:05:07]} Nxe4 {[%emt 0:00:27]} 32. Rxe4 {[%emt 0:04:52]} Qxe4 {[%emt 0:00:32]} 33. Re1 {[%emt 0:00:56]} Rd2 {[%emt 0:04:07]} 34. Qxd2 {[%emt 0:00:15]} Qxh4+ {[%emt 0:00:06]} 35. Kg1 {[%emt 0:00:20]} Qg3+ {[%emt 0:03:04]} 36. Kf1 {[%emt 0:00:06]} Ba6+ {[%emt 0:00:22]} 0-1

[Event "Icelandic Championship 2024"]
[Site "Mosfellsbaer"]
[Date "2024.04.27"]
[Round "11.5"]
[White "Gretarsson, Helgi Ass"]
[Black "Stefansson, Vignir Vatnar"]
[Result "1/2-1/2"]
[ECO "D27"]
[WhiteElo "2468"]
[BlackElo "2459"]
[Annotator "RC"]
[PlyCount "34"]
[EventDate "2024.04.16"]
[EventType "tourn"]
[EventCountry "ISL"]
[SourceTitle "playchess.com"]
[Source "ChessBase"]
[SourceQuality "1"]
[TimeControl "40/5400+30:1800+30"]

1. d4 {[%emt 0:00:03]} d5 {[%emt 0:08:54]} 2. c4 {[%emt 0:00:09]} dxc4 {[%emt 0:00:45]} 3. Nf3 {[%emt 0:00:15]} Nf6 {[%emt 0:00:46]} 4. e3 {[%emt 0:00:08]} e6 {[%emt 0:00:05]} 5. Bxc4 {[%emt 0:00:06]} c5 {[%emt 0:00:03]} 6. O-O {[%emt 0:00:41]} a6 {[%emt 0:00:09]} 7. dxc5 {[%emt 0:02:56]} Bxc5 {[%emt 0:03:28]} 8. Qxd8+ {[%emt 0:00:06]} Kxd8 {[%emt 0:00:05]} 9. Ne5 {[%emt 0:00:05]} Ke7 {[%emt 0:00:26]} 10. Be2 {[%emt 0:00:04]} Nbd7 {[%emt 0:01:39]} 11. Nd3 {[%emt 0:01:05]} Bd6 {[%emt 0:00:23]} 12. Nd2 {[%emt 0:04:36]} b5 {[%emt 0:00:59]} 13. Nb3 {[%emt 0:24:11]} Bb7 {[%emt 0:00:51]} 14. Bd2 {[%emt 0:04:46]} Rac8 {[%emt 0:00:42]} 15. Rfc1 {[%emt 0:00:14]} Rxc1+ {[%emt 0:01:26]} 16. Rxc1 {[%emt 0:00:01]} Rc8 {[%emt 0:00:09]} 17. Rxc8 {[%emt 0:20:48]} Bxc8 {[%emt 0:00:12]} 1/2-1/2

[Event "Icelandic Championship 2024"]
[Site "Mosfellsbaer"]
[Date "2024.04.27"]
[Round "11.6"]
[White "Domalchuk-Jonasson, Aleksandr"]
[Black "Kjartansson, Gudmundur"]
[Result "0-1"]
[ECO "D30"]
[WhiteElo "2368"]
[BlackElo "2480"]
[Annotator "ChessBase"]
[PlyCount "104"]
[EventDate "2024.04.16"]
[EventType "tourn"]
[EventCountry "ISL"]
[SourceTitle "playchess.com"]
[Source "ChessBase"]
[SourceQuality "1"]
[TimeControl "40/5400+30:1800+30"]

1. d4 {[%emt 0:00:03]} d5 {[%emt 0:00:04]} 2. c4 {[%emt 0:00:13]} e6 {[%emt 0:00:04]} 3. Nf3 {[%emt 0:00:19]} c6 {[%emt 0:00:07]} 4. Qc2 {[%emt 0:00:26]} dxc4 {[%emt 0:05:54]} 5. Qxc4 {[%emt 0:01:57]} b5 {[%emt 0:00:26]} 6. Qc2 {[%emt 0:00:54]} Bb7 {[%emt 0:00:39]} 7. g3 {[%emt 0:04:41]} Nd7 {[%emt 0:00:45]} 8. Nc3 {[%emt 0:02:33]} c5 {[%emt 0:05:26]} 9. dxc5 {[%emt 0:02:40]} Bxc5 {[%emt 0:00:42]} 10. Bg2 {[%emt 0:04:24]} Rc8 {[%emt 0:00:56]} 11. a3 {[%emt 0:03:46]} Ngf6 {[%emt 0:03:10]} 12. O-O {[%emt 0:06:19]} Qb6 {[%emt 0:01:35]} 13. e3 {[%emt 0:10:51]} a5 {[%emt 0:17:46]} 14. Bd2 {[%emt 0:04:18]} O-O {[%emt 0:02:54]} 15. Rfd1 {[%emt 0:04:25]} Bc6 {[%emt 0:04:01]} 16. Qd3 {[%emt 0:25:23]} Qb7 {[%emt 0:02:23]} 17. Ne1 {[%emt 0:06:26]} Bxg2 {[%emt 0:04:21]} 18. Nxg2 {[%emt 0:00:01]} Ne5 {[%emt 0:05:12]} 19. Qxb5 {[%emt 0:06:46]} Nf3+ {[%emt 0:00:25]} 20. Kh1 {[%emt 0:00:07]} Ne4 {[%emt 0:02:25]} 21. Be1 {[%emt 0:02:48]} Qxb5 {[%emt 0:02:45]} 22. Nxb5 {[%emt 0:00:01]} Nxe1 {[%emt 0:02:49]} 23. Rxe1 {[%emt 0:00:02]} Nxf2+ {[%emt 0:06:25]} 24. Kg1 {[%emt 0:00:02]} Ne4 {[%emt 0:04:30]} 25. Kf1 {[%emt 0:10:06]} a4 {[%emt 0:08:34]} 26. Rac1 {[%emt 0:00:05]} Be7 {[%emt 0:01:37]} 27. Nd4 {[%emt 0:01:39]} Bf6 {[%emt 0:12:08]} 28. Ke2 {[%emt 0:00:38]} Rb8 {[%emt 0:01:30]} 29. Rc2 {[%emt 0:00:24]} Rb6 {[%emt 0:01:01]} 30. Rec1 {[%emt 0:01:08]} g6 {[%emt 0:00:34]} 31. Ne1 {[%emt 0:01:12]} Rd8 {[%emt 0:03:03]} 32. Nc6 {[%emt 0:00:22]} Rxc6 {[%emt 0:00:54]} 33. Rxc6 {[%emt 0:00:04]} Rd2+ {[%emt 0:00:03]} 34. Kf1 {[%emt 0:00:39]} Rxh2 {[%emt 0:00:58]} 35. R6c2 {[%emt 0:01:09]} Bxb2 {[%emt 0:01:13]} 36. Rxh2 {[%emt 0:00:45]} Bxc1 {[%emt 0:00:03]} 37. Rc2 {[%emt 0:00:50]} Bxa3 {[%emt 0:00:33]} 38. Kg2 {[%emt 0:00:30]} Bd6 {[%emt 0:00:31]} 39. g4 {[%emt 0:00:15]} a3 {[%emt 0:00:29]} 40. Nf3 {[%emt 0:00:24]} Kg7 {[%emt 0:00:52]} 41. Nd4 {[%emt 0:04:03]} Kf6 {[%emt 0:04:49]} 42. Nb5 {[%emt 0:05:14]} Bc5 {[%emt 0:10:23]} 43. Kf3 {[%emt 0:06:27]} Nd6 {[%emt 0:03:15]} 44. g5+ {[%emt 0:04:00]} Kg7 {[%emt 0:01:56]} 45. Nc7 {[%emt 0:12:29]} Bb6 {[%emt 0:03:55]} 46. Na6 {[%emt 0:00:02]} Nf5 {[%emt 0:00:24]} 47. Nc5 {[%emt 0:01:11]} a2 {[%emt 0:03:43]} 48. Nb3 {[%emt 0:00:32]} Bxe3 {[%emt 0:00:14]} 49. Rxa2 {[%emt 0:00:51]} Bxg5 {[%emt 0:00:10]} 50. Nc5 {[%emt 0:00:03]} h5 {[%emt 0:00:30]} 51. Ra7 {[%emt 0:00:03]} Be3 {[%emt 0:01:06]} 52. Nxe6+ {[%emt 0:00:19]} Kf6 {[%emt 0:00:08]} 0-1